fUSD/lending_fUSD_20260419
["ID","MTS","AMOUNT","RATE_DAILY","PERIOD"]
[420818425,1776569446062,-9999.99,9.999e-05,2]
[420818426,1776569446071,-150.99,9.999e-05,2]
[420818427,1776569446080,-499.99,9.999e-05,2]
[420818428,1776569446091,-5953.32,0.0001,2]
[420818429,1776569446100,-9999.99,0.0001,2]
[420818430,1776569446110,-9999.99,0.00010037,2]
[420818431,1776569446120,-151.0,0.00010068,2]
[420818432,1776569446130,-151.0,0.00010068,2]
[420818433,1776569446140,-5867.04,0.0001007,2]
[420818434,1776569446149,-320.226,0.0001007,2]
[420818435,1776569446159,-792.3598473,0.000101,2]
[420818436,1776569446168,-1893.74720156,0.000101,2]
[420818437,1776569446179,-1898.65462709,0.000101,2]
[420818438,1776569446188,-1720.24583842,0.000101,2]
[420818439,1776569446198,-2077.06341586,0.000101,2]
[420818440,1776569446208,-269.80206187,0.000101,2]
[420818441,1776569446217,-661.19905666,0.000101,2]
[420818442,1776569446227,-524.85235304,0.000101,2]
[420818443,1776569446236,-779.90264422,0.000101,2]
[420818444,1776569446245,-832.59262515,0.000101,2]
[420818445,1776569446255,-211.65,0.000101,2]
[420818446,1776569446264,-300.0,0.00010117,2]
[420818447,1776569446274,-250.0,0.00010117,2]
[420818448,1776569446284,-906.5082201,0.00010139,2]
[420818449,1776569446293,-345.7986001,0.00010139,2]
[420818450,1776569446303,-1906.0801172,0.00010139,2]
[420818451,1776569446312,-19200.6946229,0.00010139,2]
[420818452,1776569446322,-3156.7544661,0.00010139,2]
[420818453,1776569446331,-535.46,0.00010247,2]
[420818454,1776569446341,-496.76,0.00010252,2]
[420818455,1776569446350,-1680.0,0.00010328,2]
[420818456,1776569446360,-3334.8486652,0.00010344,2]
[420818457,1776569446370,-12439.7770678,0.00010344,2]
[420818458,1776569446380,-3337.5278421,0.00010344,2]
[420818459,1776569446389,-502.74187909,0.00010344,2]
[420818460,1776569446398,-211.65,0.00010374,2]
[420818461,1776569446408,-1259.81,0.00010489,2]
[420818462,1776569446418,-157.0,0.000106,2]
[420818463,1776569446428,-157.0,0.000106,2]
[420818464,1776569446437,-211.65,0.00010648,2]
[420818465,1776569446447,-150.0,0.00010707,21]
[420818466,1776569446457,-151.52871725,0.000108,2]
[420818467,1776569446468,-171.13197185,0.000108,2]
[420818468,1776569446478,-150.39074013,0.00010872,21]
[420818469,1776569446488,-13906.69,0.00010884,2]
[420818470,1776569446497,-11876.41284347,0.000109,2]
[420818471,1776569446507,-211.65,0.00010922,2]
[420818472,1776569446516,-255.0,0.0001093,2]
[420818473,1776569446526,-519.34633268,0.00010958,2]
[420818474,1776569446536,-200.0,0.00010959,2]
[420818475,1776569446546,-150.0,0.00010959,2]
[420818476,1776569446555,-3240.0,0.00010959,2]
[420818477,1776569446565,-150.0,0.00010959,2]
[420818478,1776569446575,-158.35,0.00010983,2]
[420818479,1776569446585,-2000.0,0.00010986,2]
[420818480,1776569446594,-151.15,0.00011053,2]
[420818481,1776569446604,-162.12,0.00011053,2]
[420818482,1776569446614,-242.89321019,0.00011062,5]
[420818483,1776569446623,-151.0,0.00011063,2]
[420818484,1776569446633,-5311.2,0.00011068,2]
[420818485,1776569446642,-211.69880469,0.00011196,2]
[420818486,1776569446652,-473.0,0.00011315,5]
[420818487,1776569446661,-1397.0,0.00011361,2]
[420818488,1776569446671,-4284.2540661,0.00011426,2]
[420818489,1776569446681,-157.0,0.000115,2]
[420818490,1776569446690,-157.0,0.000115,2]
[420818491,1776569446700,-919.0,0.00011507,2]
[420818492,1776569446710,-800.0,0.000116,4]
[420818493,1776569446720,-1600.0,0.00011654,2]
[420818495,1776569446730,-2775.6894493,0.00011657,2]
[420818497,1776569446740,-744.7031219,0.00011657,2]
[420818499,1776569446749,-1600.0,0.000117,4]
[420818501,1776569446758,-955.9462959,0.00011713,2]
[420818503,1776569446768,-2473.0,0.00011749,2]
[420818505,1776569446777,-744.1053167,0.00011776,2]
[420818507,1776569446786,-2400.0,0.000118,4]
[420818509,1776569446796,-157.1655504,0.00011823,2]
[420818511,1776569446805,-1276.04872,0.0001188,2]
[420818513,1776569446816,-1276.04873,0.0001188,2]
[420818515,1776569446826,-1276.04872,0.0001188,2]
[420818517,1776569446835,-1276.04873,0.0001188,2]
[420818519,1776569446845,-1276.04873,0.0001188,2]
[420818521,1776569446854,-1276.04873,0.0001188,2]
[420818522,1776569446864,-14618.2072,0.000119,2]
[420818523,1776569446875,-1000.0,0.000119,2]
[420818524,1776569446886,-151.0,0.000119,2]
[420818525,1776569446896,-151.0,0.000119,2]
[420818526,1776569446906,-3200.0,0.000119,4]
[420818527,1776569446916,-602.4479394,0.000119,2]
[420818528,1776569446926,-619.3400313,0.0001195,2]
[420818529,1776569446938,-166.1657268,0.0001195,2]
[420818530,1776569446948,-522.53135288,0.00011999,2]
[420818531,1776569446958,-407.0,0.00012,5]
[420818532,1776569446969,-250.0,0.00012,2]
[420818533,1776569446979,-365904.76007055,0.00012,2]
[420818534,1776569446997,-9567.46598948,0.00012,2]
[420818535,1776569447017,-7554.39194273,0.00012,2]
[420818536,1776569447030,-800.00006697,0.00012,2]
[420818537,1776569447042,-12966.4973059,0.00012,2]
[420818541,1776570302868,3000.0,0.00032877,120]
[420818551,1776570585695,1566.6,0.00032877,120]
[420818552,1776570599434,1566.6,0.00032877,120]
[420818555,1776570606531,1566.6,0.00032877,120]
[420818556,1776570612684,1566.84,0.00032877,120]
[420818558,1776570624159,1566.84,0.00032877,120]
[420818559,1776570631170,1566.84,0.00032877,120]
[420818561,1776570632172,-803.0,9.673e-05,2]
[420818562,1776570632182,-4693.632,9.674e-05,2]
[420818563,1776570632192,-336.237,9.674e-05,2]
[420818564,1776570632201,-6782.8903,9.771e-05,2]
[420818565,1776570632211,-2500.0,9.771e-05,2]
[420818566,1776570632221,-44050.9883,9.771e-05,2]
[420818567,1776570632230,-1000.0,9.871e-05,2]
[420818568,1776570632240,-800.0,9.9e-05,3]
[420818569,1776570632251,-1840.17,9.994e-05,2]
[420818570,1776570632261,-2000.0,9.999e-05,2]
[420818571,1776570632270,-151.0,0.0001,2]
[420818572,1776570632281,-151.0,0.0001,2]
[420818573,1776570632291,-151.0,0.0001,2]
[420818574,1776570632300,-151.0,0.0001,2]
[420818575,1776570632310,-151.0,0.0001,2]
[420818576,1776570632319,-151.0,0.0001,2]
[420818577,1776570632328,-1700.0,0.0001,3]
[420818578,1776570632341,-151.0,0.0001,2]
[420818579,1776570632351,-151.0,0.0001,2]
[420818580,1776570632360,-151.0,0.0001,2]
[420818581,1776570632370,-151.0,0.0001,2]
[420818582,1776570632380,-151.0,0.0001,2]
[420818583,1776570632390,-151.0,0.0001,2]
[420818584,1776570632399,-250.44,0.00010213,2]
[420818585,1776570632409,-5049.77,0.00010342,2]
[420818586,1776570632419,-200.0,0.00010478,2]
[420818587,1776570632428,-267.73,0.00010478,2]
[420818588,1776570632438,-299.99,0.00010478,2]
[420818589,1776570632449,-9999.99,0.00010478,2]
[420818590,1776570632459,-9999.99,0.00010478,2]
[420818591,1776570632469,-4999.99,0.00010478,2]
[420818592,1776570632478,-1600.0,0.00010484,2]
[420818593,1776570632488,-14127.93,0.00010484,2]
[420818594,1776570632498,-24999.99,0.00010484,2]
[420818595,1776570632508,-9467.83,0.00010484,2]
[420818596,1776570632518,-518.91,0.00010484,2]
[420818597,1776570632528,-9999.99,0.00010484,2]
[420818598,1776570632538,-7184.02,0.00010484,2]
[420818599,1776570632548,-150.99,0.00010484,2]
[420818600,1776570632558,-7977.3,0.00010484,2]
[420818601,1776570632568,-172.70201938,0.0001054,2]
[420818602,1776570632577,-16280.9,0.00010625,2]
[420818603,1776570632587,-150.36,0.00010685,2]
[420818605,1776570632596,-162.97914855,0.00010745,2]
[420818607,1776570632606,-150.0,0.00010745,2]
[420818609,1776570632615,-192.73096839,0.00010745,2]
[420818610,1776570632624,-150.0,0.00010745,2]
[420818612,1776570632634,-211.03849977,0.00010745,2]
[420818614,1776570632644,-153.95405649,0.00010745,2]
[420818616,1776570632653,-1159.52772264,0.00010877,2]
[420818617,1776570632663,-3240.0,0.00010959,2]
[420818619,1776570632673,-1377.42282659,0.00011019,2]
[420818621,1776570632682,-500.0,0.00011019,2]
[420818623,1776570632693,-201.93286099,0.00011019,2]
[420818624,1776570632703,-200.0,0.00011019,2]
[420818626,1776570632712,-695.39793187,0.00011019,2]
[420818628,1776570632722,-9211.34798985,0.00011019,2]
[420818630,1776570632731,-151.0,0.00011019,2]
[420818631,1776570632740,-200.0,0.00011019,2]
[420818632,1776570632751,-2000.0,0.00011019,2]
[420818633,1776570632760,-2000.0,0.00011019,2]
[420818634,1776570632769,-201.93286099,0.00011019,2]
[420818635,1776570632779,-2000.0,0.00011019,2]
[420818636,1776570632799,-2000.0,0.00011019,2]
[420818637,1776570632810,-2000.0,0.00011019,2]
[420818638,1776570632820,-2095.774875,0.00011019,2]
[420818639,1776570632831,-743.50770149,0.00011019,2]
[420818640,1776570632841,-578.20924308,0.00011019,2]
[420818641,1776570632851,-201.93286099,0.00011019,2]
[420818642,1776570632861,-152.18421794,0.00011019,2]
[420818643,1776570632871,-151.12010474,0.00011019,2]
[420818644,1776570632881,-174.61919141,0.00011019,2]
[420818645,1776570632891,-1000.0,0.00011019,2]
[420818646,1776570632900,-1000.0,0.00011019,2]
[420818647,1776570632910,-1000.0,0.00011019,2]
[420818648,1776570633492,-1000.0,0.00011019,2]
[420818649,1776570633503,-418.9812573,0.00011019,2]
[420818650,1776570633512,-188.7255859,0.00011019,2]
[420818651,1776570633522,-672.36369839,0.00011019,2]
[420818652,1776570633532,-283.9259868,0.00011019,2]
[420818653,1776570633542,-500.0,0.00011074,2]
[420818654,1776570633552,-9552.16786547,0.00011074,2]
[420818655,1776570633561,-151.0,0.00011074,2]
[420818656,1776570633571,-3198.27562325,0.00011099,2]
[420818657,1776570633581,-309.10775077,0.00011099,2]
[420818658,1776570633591,-500.0,0.00011129,2]
[420818659,1776570633601,-9905.5980765,0.00011129,2]
[420818660,1776570633610,-151.0,0.00011129,2]
[420818661,1776570633620,-500.0,0.00011183,2]
[420818662,1776570633629,-339.02870549,0.00011183,2]
[420818663,1776570633638,-428.16976725,0.00011183,2]
[420818664,1776570633648,-500.0,0.00011183,2]
[420818665,1776570633658,-425.45086828,0.00011183,2]
[420818666,1776570633668,-292.54185534,0.00011183,2]
[420818667,1776570633677,-500.0,0.00011183,2]
[420818668,1776570633687,-160.2669701,0.00011183,2]
[420818669,1776570633696,-500.0,0.00011183,2]
[420818670,1776570633706,-500.0,0.00011183,2]
[420818671,1776570633715,-160.56833518,0.00011183,2]
[420818672,1776570633725,-10272.10520533,0.00011184,2]
[420818673,1776570633735,-500.0,0.00011184,2]
[420818674,1776570633746,-151.0,0.00011184,2]
[420818675,1776570633756,-10516.5031256,0.00011239,2]
[420818676,1776570633769,-135.66997232,0.00011239,2]
[420818677,1776570633779,-500.0,0.00011239,2]
[420818678,1776570633788,-151.0,0.00011239,2]
[420818679,1776570633798,-2000.0,0.00011249,2]
[420818680,1776570633808,-11046.30350255,0.00011294,2]
[420818681,1776570633817,-500.0,0.00011294,2]
[420818682,1776570633827,-151.0,0.00011294,2]
[420818683,1776570633843,-11850.3680785,0.00011304,2]
[420818684,1776570633852,-440.0,0.00011315,5]
[420818685,1776570633862,-348.0,0.00011315,5]
[420818686,1776570633873,-8725.18551166,0.00011349,2]
[420818687,1776570633883,-500.0,0.00011349,2]
[420818688,1776570633893,-151.0,0.00011349,2]
[420818689,1776570633902,-151.0,0.00011381,2]
[420818690,1776570633912,-500.0,0.00011404,2]
[420818691,1776570633922,-151.0,0.00011404,2]
[420818692,1776570633932,-456.62648021,0.00011459,2]
[420818693,1776570633945,-43.37351979,0.00011459,2]
[420818694,1776570633954,-151.0,0.00011459,2]
[420818695,1776570633963,-336.56249257,0.00011514,2]
[420818696,1776570633975,-163.43750743,0.00011514,2]
[420818697,1776570633984,-151.0,0.00011514,2]
[420818698,1776570633994,-202.1249295,0.00011567,2]
[420818699,1776570634014,-271.90586894,0.00011567,2]
[420818702,1776570638365,-954.35667273,0.00011567,2]
[420818703,1776570638381,-216.7866432,0.00011567,2]
[420818704,1776570638391,-201.45445377,0.00011567,2]
[420818705,1776570638402,-204.12444432,0.00011567,2]
[420818706,1776570638413,-169.84529717,0.00011567,2]
[420818707,1776570638426,-258.6,0.00011567,2]
[420818708,1776570638438,-351.78319164,0.00011567,2]
[420818709,1776570638449,-31.95280836,0.00011567,2]
[420818710,1776570638462,-149.12729313,0.00011567,2]
[420818711,1776570638472,-398.2831977,0.00011569,2]
[420818712,1776570638493,-101.7168023,0.00011569,2]
[420818713,1776570638506,-151.0,0.00011569,2]
[420818714,1776570638516,-309.10775068,0.000116,2]
[420818715,1776570638526,-53.39092127,0.00011624,2]
[420818716,1776570638577,-446.60907873,0.00011624,2]
[420818717,1776570638587,-154.11176314,0.00011624,2]
[420818718,1776570638597,-500.0,0.00011661,2]
[420818719,1776570638607,-500.0,0.00011661,2]
[420818720,1776570638618,-248.1125908,0.00011661,2]
[420818721,1776570638628,-3198.27562316,0.00011661,2]
[420818722,1776570638639,-1600.0,0.00011795,2]
[420818723,1776570638650,-661.26755484,0.000118,4]
[420818799,1776570641552,-1938.73244516,0.000118,4]
[420818800,1776570641562,-1071.0214,0.0001188,2]
[420818801,1776570641573,-1071.0214,0.0001188,2]
[420818802,1776570641583,-1071.0214,0.0001189,2]
[420818803,1776570641594,-3400.0,0.000119,4]
[420818804,1776570641605,-151.187825,0.000119,2]
[420818805,1776570641616,-200.0,0.00011904,2]
[420818806,1776570641628,-1071.0214,0.0001191,2]
[420818807,1776570641637,-166.0323384,0.0001195,2]
[420818808,1776570641647,-155.6422866,0.0001195,2]
[420818809,1776570641657,-19402.73120739,0.0001195,2]
[420818810,1776570641673,-14365.24334806,0.0001195,2]
[420818811,1776570641699,-1002.10955722,0.0001195,2]
[420818814,1776570643307,-546.0,0.0001195,2]
[420818815,1776570643484,-500.0,0.00010959,2]
[420818816,1776570643493,-7.07376394,0.0001195,2]
[420818817,1776570643624,-373.515,0.0001195,2]
[420818818,1776570643732,-683.12095,0.0001195,2]
[420818844,1776570692906,1566.84,0.00032877,120]
[420818845,1776570701990,1566.84,0.00032877,120]
[420818846,1776570707120,1567.08,0.00032877,120]
[420818847,1776570714000,1566.84,0.00032877,120]
[420818848,1776570718208,1566.84,0.00032877,120]
[420818849,1776570726107,1567.08,0.00032877,120]
[420818850,1776570735062,1566.84,0.00032877,120]
[420818851,1776570741213,1566.84,0.00032877,120]
[420818852,1776570742781,6070.9763002,0.0003287,120]
[420818853,1776570747175,1566.84,0.00032877,120]
[420818854,1776570763660,1566.6,0.00032877,120]
[420818855,1776570767075,1566.84,0.00032877,120]
[420818856,1776570775307,847.15,0.00032877,120]
[420818857,1776570780651,1566.84,0.00032877,120]
[420818858,1776570788430,1566.84,0.00032877,120]
[420818859,1776570794679,1566.84,0.00032877,120]
[420818860,1776570800969,1587.89,0.00032877,120]
[420818861,1776570824329,218.68,0.00032877,120]
[420818862,1776570831109,1566.84,0.00032877,120]
[420818863,1776570837366,1526.03,0.00032877,120]
[420818864,1776570844279,1566.84,0.00032877,120]
[420818866,1776570860280,186.7402154,0.00032876,120]
[420818867,1776571184845,500.0,0.00032192,120]
[420818871,1776571340883,1567.08,0.00032877,120]
[420818872,1776571348520,1567.08,0.00032877,120]
[420818873,1776571360238,1567.08,0.00032877,120]
[420818874,1776571364004,1567.08,0.00032877,120]
[420818875,1776571369619,1567.08,0.00032877,120]
[420818876,1776571375368,1567.08,0.00032877,120]
[420818877,1776571380486,1567.08,0.00032877,120]
[420818878,1776571386237,1567.08,0.00032877,120]
[420818880,1776571391982,1567.08,0.00032877,120]
[420818881,1776571398270,1565.63,0.00032877,120]
[420818890,1776571831396,-181.19,8.756e-05,2]
[420818891,1776571831406,-300.0,8.777e-05,2]
[420818892,1776571831415,-420.04418243,8.777e-05,2]
[420818893,1776571831427,-779.95581757,8.777e-05,2]
[420818894,1776571831440,-150.1186832,8.778e-05,2]
[420818895,1776571831450,-153.59245439,8.778e-05,2]
[420818896,1776571831459,-152.74389707,8.778e-05,2]
[420818897,1776571831469,-152.67648798,8.778e-05,2]
[420818898,1776571831484,-63.86050196,8.778e-05,2]
[420818899,1776571831494,-151.53996049,8.778e-05,2]
[420818900,1776571831504,-150.96698935,8.778e-05,2]
[420818901,1776571831514,-150.32659189,8.778e-05,2]
[420818902,1776571831523,-154.55638273,8.778e-05,2]
[420818903,1776571831533,-48.378775,8.778e-05,2]
[420818904,1776571831544,-102.06611696,8.778e-05,2]
[420818905,1776571831554,-150.42289677,8.778e-05,2]
[420818906,1776571831563,-160.73463068,8.778e-05,2]
[420818907,1776571831575,-39.56249634,8.778e-05,2]
[420818908,1776571831587,-113.82395041,8.778e-05,2]
[420818909,1776571831597,-153.45724389,8.778e-05,2]
[420818910,1776571831607,-118.09478845,8.778e-05,2]
[420818913,1776571831786,-33.27951183,8.778e-05,2]
[420818915,1776571831795,-862.13048817,9.576e-05,2]
[420818965,1776571832251,-688.04248223,9.576e-05,2]
[420818966,1776571832422,-2204.7330296,9.576e-05,2]
[420818967,1776571832431,-268.99,9.576e-05,2]
[420818968,1776571832440,-150.0,9.631e-05,2]
[420818969,1776571832450,-300.0,9.632e-05,2]
[420818970,1776571832460,-5000.0,9.632e-05,2]
[420818971,1776571832469,-250.0,9.632e-05,2]
[420818972,1776571832479,-420.0,9.655e-05,2]
[420818973,1776571832488,-1680.0,9.655e-05,2]
[420818974,1776571832497,-7975.1439,9.671e-05,2]
[420818975,1776571832507,-20486.6139,9.671e-05,2]
[420818976,1776571832516,-2500.0,9.671e-05,2]
[420818977,1776571832525,-400.0,9.9e-05,3]
[420818978,1776571832535,-1277.10563844,0.0001,2]
[420818979,1776571832544,-3081.05644228,0.0001,2]
[420818980,1776571832554,-790.61214555,0.0001,2]
[420818981,1776571832644,-1981.85396881,0.0001,2]
[420818982,1776571832653,-347.66401135,0.0001,2]
[420818983,1776571832663,-383.0694616,0.0001,2]
[420818984,1776571832674,-278.34615042,0.0001,2]
[420818985,1776571832684,-725.84095358,0.0001,2]
[420818986,1776571832694,-746.48002601,0.0001,2]
[420818987,1776571832703,-800.0,0.0001,3]
[420818988,1776571832713,-151.0,0.0001,2]
[420818989,1776571832722,-151.0,0.0001,2]
[420818990,1776571832731,-151.0,0.0001,2]
[420818991,1776571832740,-151.0,0.0001,2]
[420818992,1776571832749,-151.0,0.0001,2]
[420818993,1776571832759,-151.0,0.0001,2]
[420818994,1776571832768,-151.0,0.0001,2]
[420818995,1776571832778,-151.0,0.0001,2]
[420818996,1776571832787,-151.0,0.0001,2]
[420818997,1776571832796,-151.0,0.0001,2]
[420818998,1776571832805,-151.0,0.0001,2]
[420818999,1776571832815,-55.5217041,0.0001,2]
[420819019,1776571839797,-95.4782959,0.0001,2]
[420819020,1776571839806,-242.0,0.00010594,2]
[420819021,1776571839816,-167.0,0.0001062,2]
[420819022,1776571839825,-158.35,0.0001063,2]
[420819023,1776571839836,-366.84497159,0.000107,2]
[420819024,1776571839958,-6061.57519651,0.000107,2]
[420819025,1776571839971,-6087.10756133,0.000107,2]
[420819041,1776571842615,-416.0,0.000107,2]
[420819042,1776571842723,-6137.36449556,0.000107,2]
[420819052,1776571845601,-315.52696158,9.671e-05,2]
[420819053,1776571845711,-368.92572148,9.671e-05,2]
[420819054,1776571846032,-381.95468758,9.671e-05,2]
[420819059,1776572166735,1753.05,0.0003287,120]
[420819061,1776572339274,165.82,9.67e-05,30]
[420819062,1776572339600,165.82,9.767e-05,30]
[420819063,1776572339971,165.82,9.864e-05,30]
[420819064,1776572340678,165.82,9.96e-05,30]
[420819065,1776572341151,165.82,0.00010057,30]
[420819066,1776572341502,165.82,0.00010154,30]
[420819067,1776572341851,165.82,0.0001025,30]
[420819069,1776572550065,323.697858,0.0003287,120]
[420819070,1776572583129,10000.0,0.00032877,120]
[420819071,1776572603832,8321.0,0.00032877,120]
[420819076,1776573001319,200.59953419,0.00017795,120]
[420819097,1776573033058,-215.192,9.478e-05,2]
[420819098,1776573033067,-522.70458391,9.478e-05,2]
[420819099,1776573033087,-1109.97033837,9.478e-05,2]
[420819100,1776573033100,-471.09513685,9.478e-05,2]
[420819101,1776573033111,-255.75980045,9.478e-05,2]
[420819102,1776573033123,-644.39514042,9.478e-05,2]
[420819103,1776573033133,-95.43728139,9.57e-05,2]
[420819104,1776573033150,-1104.56271861,9.57e-05,2]
[420819105,1776573033160,-150.0,9.57e-05,2]
[420819106,1776573033169,-2500.0,9.571e-05,2]
[420819107,1776573033179,-191257.37041785,9.571e-05,2]
[420819108,1776573033196,-3786.45,9.571e-05,2]
[420819109,1776573033212,-601.37252027,9.571e-05,2]
[420819114,1776573037975,-4992.61308658,9.571e-05,2]
[420819115,1776573038091,-2917.5460326,9.571e-05,2]
[420819116,1776573038140,-552.93113016,9.571e-05,2]
[420819117,1776573038196,-3796.22534557,9.571e-05,2]
[420819177,1776573039965,-591.07158026,9.571e-05,2]
[420819178,1776573039979,-644.38,9.571e-05,2]
[420819179,1776573039990,-1700.7688146,9.571e-05,2]
[420819180,1776573040034,-78902.41507211,9.571e-05,2]
[420819181,1776573040045,-151.0,9.668e-05,2]
[420819182,1776573040055,-1116.04031304,9.67e-05,3]
[420819183,1776573040064,-221.62,9.67e-05,2]
[420819184,1776573040074,-300.0,9.9e-05,3]
[420819185,1776573040083,-221.63,9.944e-05,2]
[420819186,1776573040093,-9539.1769586,9.979e-05,2]
[420819187,1776573040103,-151.79243632,0.0001,2]
[420819188,1776573040113,-155.43910794,0.0001,2]
[420819189,1776573040123,-154.74384115,0.0001,2]
[420819190,1776573040134,-156.10094823,0.0001,2]
[420819191,1776573040143,-150.64509087,0.0001,2]
[420819192,1776573040153,-151.70705066,0.0001,2]
[420819193,1776573040162,-151.93641247,0.0001,2]
[420819194,1776573040172,-152.06641836,0.0001,2]
[420819195,1776573040181,-172.76966209,0.0001,2]
[420819196,1776573040191,-210.11175163,0.0001,2]
[420819197,1776573040200,-222.89588606,0.0001,2]
[420819198,1776573040209,-218.2015934,0.0001,2]
[420819199,1776573040219,-151.0,0.0001,2]
[420819200,1776573040228,-151.0,0.0001,2]
[420819201,1776573040238,-151.0,0.0001,2]
[420819202,1776573040247,-151.0,0.0001,2]
[420819203,1776573040256,-151.0,0.0001,2]
[420819204,1776573040266,-151.0,0.0001,2]
[420819205,1776573040275,-151.0,0.0001,2]
[420819206,1776573040285,-151.0,0.0001,2]
[420819207,1776573040294,-151.0,0.0001,2]
[420819208,1776573040304,-151.0,0.0001,2]
[420819209,1776573040313,-151.0,0.0001,2]
[420819210,1776573040322,-225.1875034,0.0001,2]
[420819211,1776573040331,-700.0,0.0001,3]
[420819212,1776573040341,-10547.36,0.00010006,2]
[420819213,1776573040350,-267.73,0.00010019,2]
[420819214,1776573040360,-175.63,0.00010019,2]
[420819215,1776573040372,-200.0,0.00010038,2]
[420819216,1776573040382,-1600.0,0.00010149,2]
[420819217,1776573040391,-9999.99,0.00010475,2]
[420819218,1776573040400,-11409.05,0.00010475,2]
[420819219,1776573040410,-999.99,0.00010475,2]
[420819220,1776573040421,-979.46,0.00010475,2]
[420819221,1776573040430,-299.99,0.00010475,2]
[420819222,1776573040440,-150.99,0.00010475,2]
[420819223,1776573040450,-9999.99,0.00010475,2]
[420819224,1776573040460,-255.0,0.00010527,2]
[420819225,1776573040469,-1000.0,0.0001066,2]
[420819226,1776573040478,-2000.0,0.00010686,2]
[420819227,1776573040488,-151.0,0.00010697,2]
[420819228,1776573040497,-12025.35631305,0.000107,2]
[420819229,1776573040522,-1795.49356464,0.000107,2]
[420819254,1776573042926,-648.92043422,0.000107,2]
[420819260,1776573045352,-661.24,0.000107,2]
[420819262,1776573045931,-511.63701206,0.000107,2]
[420819263,1776573046360,-549.20343999,0.000107,2]
[420819264,1776573046528,-5721.88673891,0.000107,2]
[420819265,1776573046546,-492.98298303,0.000107,2]
[420819351,1776573192990,4000.22074354,0.00032876,120]
[420819352,1776573339199,3703.0,0.00032877,120]
[420819354,1776573372632,157.0,0.000328,120]
[420819355,1776573379351,3703.0,0.00032877,120]
[420819356,1776573600998,150.0,0.00017795,120]
[420819357,1776573601779,170.35972052,0.00017795,120]
[420819360,1776573903187,535.48,0.0003269,120]
[420819361,1776573909796,10000.0,7.22e-05,2]
[420819362,1776573925398,0.01,7.22e-05,2]
[420819363,1776573925421,5889.99,7.22e-05,2]
[420819366,1776574199095,686.37843343,0.00027378,120]
[420819367,1776574199912,686.37843343,0.00027451,120]
[420819368,1776574200398,686.37843343,0.00027525,120]
[420819369,1776574200668,192.21583231,0.00017795,120]
[420819397,1776574233650,-300.0,8.9e-05,3]
[420819398,1776574233660,-600.0,9e-05,3]
[420819399,1776574233669,-300.0,9.281e-05,2]
[420819400,1776574233679,-1200.0,9.281e-05,2]
[420819401,1776574233688,-2403.14,9.282e-05,2]
[420819402,1776574233697,-172.153,9.282e-05,2]
[420819403,1776574233707,-289.21383177,9.282e-05,2]
[420819404,1776574233716,-261.0,9.282e-05,2]
[420819405,1776574233725,-114.74571408,9.371e-05,2]
[420819406,1776574233946,-314.57995572,9.371e-05,2]
[420819407,1776574234100,-448.42004428,9.371e-05,2]
[420819408,1776574234112,-1410.02104493,9.371e-05,2]
[420819409,1776574234143,-120914.44734099,9.371e-05,2]
[420819410,1776574234153,-2500.0,9.371e-05,2]
[420819411,1776574234163,-150.0,9.469e-05,2]
[420819412,1776574234172,-250.0,9.47e-05,2]
[420819413,1776574234181,-289.21383177,9.641e-05,2]
[420819414,1776574234194,-300.88283027,9.79e-05,2]
[420819415,1776574234204,-289.21383177,0.0001,2]
[420819416,1776574234213,-474.1616896,0.0001,2]
[420819417,1776574234222,-501.0,0.00010027,2]
[420819418,1776574234232,-4020.44257099,0.00010252,2]